bitfinex/quotes_SOLUSD_20241022
["timestamp","ask_amount","ask_price","bid_price","bid_amount"]
[1729599013088,16.1682,168.96,168.88,20.0]
[1729599013495,6.5229,168.98,168.9,20.0]
[1729599016382,15.6016,169.0,168.9,20.0]
[1729599018498,6.4463,169.02,168.94,20.0]
[1729599018709,6.4463,169.02,168.96,36.83075498]
[1729599021394,15.5105,169.04,168.96,36.83075498]
[1729599026692,6.3673,169.06,168.99,16.83075498]
[1729599033916,6.3673,169.06,169.01,16.83075498]
[1729599034317,6.3673,169.06,169.03,10.75513134]
[1729599035718,21.3525,169.09,169.03,10.75513134]
[1729599037128,15.4385,169.09,169.05,10.75513134]
[1729599037420,6.2932,169.1,169.07,10.75513134]
[1729599040519,28.6139,169.16,169.09,10.75513134]
[1729599040703,28.6139,169.16,169.11,10.75513134]
[1729599041613,22.7023,169.16,169.11,10.75513134]
[1729599042999,0.6226373,169.19,169.15,10.75513134]
[1729599044921,0.6226373,169.19,169.17,10.75513134]
[1729599050841,0.6226373,169.19,169.13,43.776884]
[1729599051021,0.6226373,169.19,169.17,10.75513134]
[1729599053924,0.6226373,169.19,169.18,23.776884]
[1729599057035,0.6226373,169.19,169.13,1.18197005]
[1729599057219,0.6226373,169.19,169.16,10.75513134]
[1729599058147,0.6226373,169.19,169.18,10.75513134]
[1729599058833,0.6226373,169.19,169.18,34.53201534]
[1729599059234,0.6226373,169.19,169.18,54.53201534]
[1729599059435,28.5557,169.28,169.19,43.776884]
[1729599059639,5.9082,169.26,169.19,43.776884]
[1729599059841,5.9082,169.26,169.22,10.75513134]
[1729599060237,5.9086,169.25,169.13,43.776884]
[1729599060427,5.9077,169.27,169.13,23.776884]
[1729599060630,5.9077,169.27,169.17,10.75513134]
[1729599060833,5.9101,169.21,169.17,10.75513134]
[1729599062355,21.8413,169.2,169.15,10.75513134]
[1729599062664,5.9109,169.18,169.13,10.75513134]
[1729599062833,5.9105,169.19,169.13,10.75513134]
[1729599063033,27.7515,169.2,169.13,10.75513134]
[1729599063357,5.9112,169.17,169.12,10.75513134]
[1729599064040,5.9109,169.18,169.12,10.75513134]
[1729599064256,5.9109,169.18,169.1,16.78552885]
[1729599065156,21.8413,169.2,169.08,43.776884]
[1729599065344,21.8413,169.2,169.1,16.78552885]
[1729599065553,5.9111,169.18,169.1,16.78552885]
[1729599067345,5.9111,169.18,169.08,43.776884]
[1729599067653,5.9111,169.18,169.1,16.78552885]
[1729599068346,21.8413,169.2,169.1,16.78552885]
[1729599068554,5.9109,169.18,169.1,16.78552885]
[1729599071661,5.9129,169.12,169.02,16.354]
[1729599071851,5.9129,169.12,169.03,22.93505691]
[1729599072052,5.9129,169.12,169.03,16.78552885]
[1729599072750,5.9127,169.13,169.03,16.78552885]
[1729599073143,5.9127,169.13,169.04,43.776884]
[1729599073666,5.9135,169.11,169.02,20.0]
[1729599073966,5.9138,169.1,169.02,16.78552885]
[1729599074462,5.9134,169.11,169.02,16.78552885]
[1729599074853,5.9133,169.11,169.0,16.78552885]
[1729599075068,22.8849,169.12,169.0,16.78552885]
[1729599075268,5.9146,169.08,169.0,16.78552885]
[1729599075565,5.915,169.06,168.99,6.15782159]
[1729599075770,5.9147,169.07,168.99,6.15782159]
[1729599076147,5.9151,169.06,168.99,6.15782159]
[1729599076343,5.9157,169.04,168.99,6.15782159]
[1729599076545,5.9162,169.03,168.99,6.15782159]
[1729599076768,5.9162,169.03,168.94,16.78552885]
[1729599076966,5.9162,169.03,168.93,16.1355]
[1729599077272,5.917,169.01,168.92,25.9039407]
[1729599077849,15.604,169.03,168.89,22.29433074]
[1729599078072,5.9186,168.96,168.89,22.29433074]
[1729599078250,15.604,169.03,168.89,22.29433074]
[1729599078464,15.604,169.03,168.89,39.07985959]
[1729599078666,5.9181,168.98,168.89,39.07985959]
[1729599079865,14.792,169.01,168.89,22.94435959]
[1729599080067,5.9183,168.97,168.9,20.0]
[1729599080264,5.9183,168.97,168.89,22.94435959]
[1729599080265,11.9697,168.97,168.89,22.94435959]
[1729599080470,5.9185,168.96,168.89,22.94435959]
[1729599080684,6.0514,168.97,168.89,6.15883074]
[1729599080868,5.9195,168.94,168.89,6.15883074]
[1729599081074,5.9185,168.96,168.87,16.78552885]
[1729599081259,5.9192,168.95,168.85,33.19872885]
[1729599081454,5.9185,168.96,168.85,33.19872885]
[1729599081772,5.9191,168.95,168.85,33.19872885]
[1729599082283,5.9191,168.95,168.86,20.0]
[1729599082577,5.9203,168.91,168.84,23.776884]
[1729599082771,15.9038,168.96,168.84,23.776884]
[1729599082772,5.9201,168.92,168.84,23.776884]
[1729599082968,5.9196,168.93,168.82,6.5995]
[1729599083159,5.9196,168.93,168.84,16.78552885]
[1729599083660,30.701,168.96,168.81,16.2099]
[1729599083861,5.9198,168.93,168.82,23.776884]
[1729599084053,30.701,168.96,168.83,16.78552885]
[1729599084255,5.9204,168.91,168.83,16.78552885]
[1729599084504,5.9204,168.91,168.81,32.99542885]
[1729599085757,5.9204,168.91,168.82,20.0]
[1729599086479,5.921,168.89,168.81,32.99542885]
[1729599086679,5.921,168.89,168.81,16.78552885]
[1729599086974,5.922,168.87,168.78,5.58217609]
[1729599087198,5.922,168.87,168.77,39.73588221]
[1729599087478,16.4681,168.89,168.73,14.56715807]
[1729599087479,5.9225,168.85,168.75,16.78552885]
[1729599087976,6.5772,168.88,168.73,25.77051083]
[1729599088184,5.9234,168.83,168.73,25.77051083]
[1729599088354,5.9237,168.82,168.73,25.77051083]
[1729599088754,6.5772,168.88,168.73,25.77051083]
[1729599088967,5.9232,168.83,168.73,25.77051083]
[1729599089162,14.8042,168.87,168.71,21.20003688]
[1729599089350,5.9236,168.82,168.71,37.98556573]
[1729599089971,5.9238,168.81,168.71,37.98556573]
[1729599090368,27.726,168.81,168.72,20.0]
[1729599091086,5.9241,168.8,168.72,20.0]
[1729599092996,5.9252,168.77,168.72,20.0]
[1729599093226,5.9249,168.78,168.72,20.0]
[1729599093491,5.9249,168.78,168.7,20.0]
[1729599093986,5.9245,168.79,168.72,20.0]
[1729599094172,5.9241,168.8,168.72,20.0]
[1729599094366,5.9249,168.78,168.72,20.0]
[1729599095087,27.7263,168.81,168.73,16.78552885]
[1729599095297,5.9227,168.84,168.76,17.40816615]
[1729599095593,5.9213,168.88,168.8,20.0]
[1729599095770,22.9921,168.9,168.8,20.0]
[1729599095970,5.9218,168.87,168.8,20.0]
[1729599097096,5.9218,168.87,168.79,16.78552885]
[1729599097097,5.9224,168.85,168.79,16.78552885]
[1729599097395,5.9224,168.85,168.77,36.78552885]
[1729599098378,5.9228,168.84,168.77,16.78552885]
[1729599098577,5.9228,168.84,168.76,0.6226373]
[1729599099187,5.9236,168.82,168.76,0.6226373]
[1729599099390,5.9241,168.81,168.76,0.6226373]
[1729599099698,22.1599,168.82,168.76,0.6226373]
[1729599100083,5.9246,168.79,168.76,0.6226373]
[1729599100691,22.1599,168.82,168.76,0.6226373]
[1729599100910,22.1599,168.82,168.77,16.78552885]
[1729599101080,27.9008,168.86,168.77,16.78552885]
[1729599101403,21.9787,168.86,168.78,20.0]
[1729599101592,21.9787,168.86,168.8,16.78552885]
[1729599105297,27.9009,168.86,168.8,16.78552885]
[1729599105487,5.9228,168.84,168.77,16.78552885]
[1729599106294,21.9787,168.86,168.8,16.78552885]
[1729599106987,6.5136,168.86,168.8,16.78552885]
[1729599109009,5.9216,168.88,168.8,16.78552885]
[1729599109192,6.0398,168.9,168.86,16.78552885]
[1729599109400,21.5232,168.94,168.86,16.78552885]
[1729599109603,27.4425,168.94,168.86,16.78552885]
[1729599110298,21.5232,168.94,168.86,16.78552885]
[1729599110804,5.9199,168.92,168.86,16.78552885]
[1729599112892,5.9196,168.93,168.86,16.78552885]
[1729599113085,5.9203,168.91,168.86,16.78552885]
[1729599113283,5.9207,168.9,168.86,16.78552885]
[1729599113499,5.9209,168.9,168.83,16.78552885]
[1729599113810,5.921,168.89,168.84,20.0]
[1729599114585,5.9207,168.9,168.84,20.0]
[1729599114786,5.9207,168.9,168.83,16.78552885]
[1729599115505,5.921,168.89,168.83,16.78552885]
[1729599116011,20.0,168.93,168.83,16.78552885]
[1729599116192,5.9216,168.88,168.82,20.0]
[1729599117506,14.7999,168.92,168.82,20.0]
[1729599117710,5.9219,168.87,168.82,20.0]
[1729599117909,53.377284,168.92,168.79,16.78552885]
[1729599118101,5.9228,168.84,168.77,16.78552885]
[1729599119416,5.9228,168.84,168.78,20.0]
[1729599123012,5.9231,168.83,168.76,0.6226373]
[1729599123225,5.9231,168.83,168.76,20.6226373]
[1729599125129,5.9211,168.89,168.82,16.78552885]
[1729599125517,6.3559,168.9,168.82,16.78552885]
[1729599125722,5.9215,168.88,168.82,16.78552885]
[1729599129719,5.922,168.86,168.8,16.78552885]
[1729599129917,5.921,168.89,168.81,20.0]
[1729599130219,14.8032,168.89,168.81,20.0]
[1729599130421,5.9219,168.87,168.8,16.78552885]
[1729599130832,5.922,168.86,168.81,20.0]
[1729599133031,5.922,168.86,168.8,16.78552885]
[1729599133331,5.922,168.86,168.81,20.0]
[1729599134133,14.8032,168.89,168.81,20.0]
[1729599134334,5.9225,168.85,168.81,20.0]
[1729599135237,5.9228,168.84,168.78,16.78552885]
[1729599135738,5.9228,168.84,168.79,20.0]
[1729599137338,5.9235,168.82,168.79,20.0]
[1729599137835,5.9235,168.82,168.77,20.0]
[1729599138618,12.14,168.82,168.77,20.0]
[1729599138823,12.14,168.82,168.76,20.6226373]
[1729599139236,12.14,168.82,168.76,0.6226373]
[1729599141351,6.2165,168.82,168.76,0.6226373]
[1729599141522,6.2165,168.82,168.77,16.78552885]
[1729599141842,6.2165,168.82,168.78,20.0]
[1729599150451,6.2165,168.82,168.79,10.78573466]
[1729599151444,16.2724,168.79,168.76,0.6226373]
[1729599151648,5.9248,168.78,168.76,0.6226373]
[1729599151855,5.9252,168.77,168.76,0.6226373]
[1729599152749,6.2165,168.82,168.76,0.6226373]
[1729599152955,6.2165,168.82,168.78,10.78573466]
[1729599153168,12.1399,168.82,168.78,10.78573466]
[1729599153756,12.1399,168.82,168.76,0.6226373]
[1729599153958,12.1399,168.82,168.77,10.78573466]
[1729599154257,12.1399,168.82,168.76,0.6226373]
[1729599154465,6.2165,168.82,168.76,0.6226373]
[1729599155279,5.925,168.78,168.76,0.6226373]
[1729599159474,5.9252,168.77,168.76,0.6226373]
[1729599159674,36.9545,168.86,168.76,0.6226373]
[1729599159877,5.9232,168.83,168.76,17.48007787]
[1729599160667,36.9545,168.86,168.76,17.48007787]
[1729599160973,5.9235,168.82,168.76,17.48007787]
[1729599161353,5.9224,168.85,168.76,17.48007787]
[1729599161553,5.9237,168.82,168.76,17.48007787]
[1729599165475,1.82480171,168.89,168.76,0.6226373]
[1729599165699,5.9195,168.94,168.86,16.85744057]
[1729599165977,5.9195,168.94,168.81,16.1887]
[1729599165978,6.08573575,168.91,168.88,16.85744057]
[1729599166183,16.3838,168.96,168.9,16.85744057]
[1729599176259,16.3838,168.96,168.84,20.0]
[1729599176463,16.3838,168.96,168.85,16.85744057]
[1729599176464,5.9197,168.93,168.85,16.85744057]
[1729599177574,5.9202,168.92,168.85,16.85744057]
[1729599178283,5.9202,168.92,168.78,14.12421177]
[1729599178284,6.281,168.91,168.82,16.85744057]
[1729599178463,5.9212,168.89,168.82,16.85744057]
[1729599178883,6.281,168.91,168.82,16.85744057]
[1729599179069,5.9214,168.88,168.82,16.85744057]
[1729599181894,5.9214,168.88,168.79,20.0]
[1729599182192,5.9214,168.88,168.81,16.85744057]
[1729599184889,21.6564,168.88,168.81,16.85744057]
[1729599185203,15.735,168.88,168.76,15.9562373]
[1729599185374,5.9228,168.84,168.79,16.85744057]
[1729599185776,5.9228,168.84,168.77,16.85744057]
[1729599186277,5.9242,168.8,168.76,0.6226373]
[1729599186467,5.9231,168.83,168.76,17.48007787]
[1729599187193,12.34,168.84,168.78,16.85744057]
[1729599188179,5.9233,168.83,168.76,17.48007787]
[1729599188985,6.4172,168.84,168.76,17.48007787]
[1729599189187,15.7527,168.81,168.76,0.6226373]
[1729599189497,5.9248,168.78,168.76,0.6226373]
[1729599192603,23.776884,168.8,168.76,0.6226373]
[1729599192800,5.9252,168.77,168.76,0.6226373]
[1729599195500,15.7527,168.81,168.76,0.6226373]
[1729599195710,15.7527,168.81,168.76,17.48007787]
[1729599196292,5.9231,168.83,168.76,17.48007787]
[1729599197190,5.9242,168.8,168.76,17.48007787]
[1729599197386,5.9242,168.8,168.76,0.6226373]
[1729599198103,23.776884,168.83,168.76,0.6226373]
[1729599198484,5.9252,168.77,168.76,0.6226373]
[1729599199090,21.8021,168.77,168.76,0.6226373]
[1729599199801,45.578984,168.77,168.76,0.6226373]
[1729599206713,65.578984,168.77,168.76,0.6226373]
[1729599219801,45.578984,168.77,168.76,0.6226373]
[1729599220027,29.702084,168.77,168.76,0.6226373]
[1729599221221,49.702084,168.77,168.76,0.6226373]
[1729599222715,25.9252,168.77,168.76,0.6226373]
[1729599223219,5.9252,168.77,168.76,0.6226373]
[1729599223523,25.9252,168.77,168.76,0.6226373]
[1729599223727,36.27516671,168.81,168.76,0.6226373]
[1729599223914,5.9249,168.78,168.76,0.6226373]
[1729599224112,30.1668,168.81,168.76,0.6226373]
[1729599224302,5.9252,168.77,168.76,0.6226373]
[1729599224710,30.1668,168.81,168.76,0.6226373]
[1729599224910,5.9247,168.79,168.76,0.6226373]
[1729599226616,23.776884,168.82,168.76,0.6226373]
[1729599226839,5.9249,168.78,168.76,0.6226373]
[1729599229432,5.9252,168.78,168.76,0.6226373]
[1729599229935,5.9252,168.77,168.76,0.6226373]
[1729599231435,38.585484,168.82,168.76,0.6226373]
[1729599231743,5.9249,168.78,168.76,0.6226373]
[1729599232929,5.9252,168.77,168.76,0.6226373]
[1729599238050,29.702084,168.77,168.76,0.6226373]
[1729599243853,72.571884,168.77,168.76,0.6226373]
[1729599244732,72.571884,168.77,168.76,3.73e-05]
[1729599245042,72.571884,168.77,168.64,10.79719745]
[1729599245043,43.776884,168.74,168.64,10.79719745]
[1729599245242,5.9288,168.67,168.64,10.79719745]
[1729599245433,5.9288,168.67,168.62,16.3331]
[1729599245434,5.9288,168.67,168.63,10.79719745]
[1729599247859,5.9293,168.66,168.63,10.79719745]
[1729599248460,5.9293,168.66,168.62,16.3331]
[1729599250868,5.9293,168.66,168.63,10.79719745]
[1729599251035,5.9274,168.71,168.65,10.79719745]
[1729599251245,5.9274,168.71,168.67,10.79719745]
[1729599251750,5.9258,168.76,168.69,10.79719745]
[1729599251949,22.8698,168.77,168.71,10.79719745]
[1729599252463,5.9261,168.75,168.71,10.79719745]
[1729599252833,5.9263,168.74,168.71,10.79719745]
[1729599253040,5.9258,168.76,168.71,10.79719745]
[1729599253362,22.8698,168.77,168.71,10.79719745]
[1729599253548,22.8698,168.77,168.6,7.0625373]
[1729599253549,5.9248,168.79,168.73,10.79719745]
[1729599253746,15.2595,168.81,168.75,10.79719745]
[1729599254052,5.9242,168.8,168.75,10.79719745]
[1729599254455,5.9245,168.79,168.73,10.79719745]
[1729599256348,5.9245,168.79,168.72,16.86210709]
[1729599261463,43.776884,168.83,168.72,16.86210709]
[1729599261665,23.776884,168.83,168.7,16.86210709]
[1729599261871,5.9251,168.78,168.7,16.86210709]
[1729599263367,23.776884,168.83,168.7,16.86210709]
[1729599263558,5.9255,168.77,168.7,16.86210709]
[1729599268480,5.925,168.78,168.7,16.86210709]
[1729599268855,5.9252,168.77,168.7,16.86210709]
[1729599269461,5.9257,168.76,168.7,16.86210709]
[1729599272471,23.776884,168.76,168.67,16.86210709]
[1729599272781,5.9265,168.74,168.67,16.86210709]
[1729599272966,6.5595,168.77,168.67,16.86210709]
[1729599272967,5.9267,168.73,168.67,16.86210709]
[1729599273759,5.9255,168.76,168.67,16.86210709]
[1729599273953,5.9259,168.75,168.67,16.86210709]
[1729599274366,5.9259,168.75,168.66,20.0]
[1729599274568,5.9259,168.75,168.69,16.86210709]
[1729599276288,5.9259,168.75,168.71,10.79623876]
[1729599276684,6.5595,168.77,168.73,10.79623876]
[1729599276879,12.485,168.77,168.73,10.79623876]
[1729599278484,6.5595,168.77,168.73,10.79623876]
[1729599278670,5.9256,168.76,168.73,10.79623876]
[1729599279388,6.5595,168.77,168.73,10.79623876]
[1729599279573,5.9261,168.75,168.73,10.79623876]
[1729599280367,5.9261,168.75,168.71,10.79623876]
[1729599280983,5.9266,168.73,168.71,10.79623876]
[1729599283201,5.9266,168.73,168.69,10.79623876]
[1729599285494,5.9266,168.73,168.65,15.539]
[1729599285679,5.9266,168.73,168.69,10.79623876]
[1729599287793,5.9266,168.73,168.65,15.539]
[1729599287971,5.9266,168.73,168.69,10.79623876]
[1729599293972,5.9266,168.73,168.65,15.539]
[1729599294294,5.9266,168.73,168.69,10.79623876]
[1729599300807,6.5595,168.77,168.71,10.79623876]
[1729599301002,12.4847,168.77,168.74,10.79623876]
[1729599301306,12.4847,168.77,168.66,23.776884]
[1729599301602,12.4847,168.77,168.73,10.79623876]
[1729599301982,5.9257,168.76,168.73,10.79623876]
[1729599302592,6.5595,168.77,168.73,10.79623876]
[1729599303310,21.3607,168.82,168.75,10.79623876]
[1729599303605,21.3607,168.82,168.79,10.79623876]
[1729599304197,27.2842,168.82,168.79,10.79623876]
[1729599305326,5.924,168.81,168.77,10.79623876]
[1729599305612,5.9219,168.87,168.8,10.79623876]
[1729599305781,5.9219,168.87,168.84,10.79623876]
[1729599306992,5.9219,168.87,168.82,10.79623876]
[1729599307396,37.1232,168.94,168.84,10.79623876]
[1729599307600,5.921,168.89,168.85,10.79623876]
[1729599307796,5.921,168.89,168.79,16.2673]
[1729599307797,5.921,168.89,168.83,10.79623876]
[1729599309406,5.9207,168.9,168.85,10.79623876]
[1729599309605,20.0,168.93,168.85,10.79623876]
[1729599309910,5.9208,168.9,168.85,10.79623876]
[1729599310611,5.9201,168.92,168.85,10.79623876]
[1729599311111,29.697084,168.92,168.85,10.79623876]
[1729599311302,5.9206,168.9,168.79,16.2673]
[1729599311503,5.9206,168.9,168.84,10.79623876]
[1729599312210,20.0,168.93,168.84,10.79623876]
[1729599312398,5.9203,168.91,168.84,10.79623876]
[1729599312707,5.9213,168.89,168.79,16.2673]
[1729599312892,5.9213,168.89,168.83,10.79623876]
[1729599318017,5.9213,168.89,168.85,10.79623876]
[1729599318315,5.9202,168.92,168.87,10.79623876]
[1729599320501,5.62884844,169.0,168.87,10.79623876]
[1729599320502,5.9165,169.02,168.91,10.79623876]
[1729599320711,5.9165,169.02,168.97,10.79623876]
[1729599321404,5.9165,169.02,168.96,10.79623876]
[1729599325529,5.9168,169.01,168.96,10.79623876]
[1729599328136,23.776884,169.03,168.89,23.776884]
[1729599328439,23.776884,169.03,168.91,10.79623876]
[1729599328440,5.9179,168.98,168.91,10.79623876]
[1729599329619,5.9179,168.98,168.93,10.79623876]
[1729599330221,5.9169,169.01,168.95,10.79623876]
[1729599330738,5.9172,169.0,168.95,10.79623876]
[1729599331125,5.9169,169.01,168.95,10.79623876]
[1729599331838,6.5444,169.04,168.99,10.79623876]
[1729599332039,21.8895,169.05,168.99,10.79623876]
[1729599332218,5.9178,168.99,168.91,16.0591]
[1729599332421,5.9178,168.99,168.93,10.79623876]
[1729599332833,5.9174,169.0,168.93,10.79623876]
[1729599333232,5.9163,169.03,168.98,10.79623876]
[1729599333640,5.9157,169.04,168.98,10.79623876]
[1729599334446,6.2101,169.08,168.98,10.79623876]
[1729599334651,5.9157,169.04,168.98,10.79623876]
[1729599335029,5.9152,169.06,169.0,10.79623876]
[1729599335728,6.2101,169.08,169.0,10.79623876]
[1729599335936,5.9154,169.05,169.0,10.79623876]
[1729599336131,5.9154,169.05,168.94,6.5894]
[1729599336445,5.9156,169.05,168.99,10.79623876]
[1729599338028,5.915,169.06,169.01,10.79623876]
[1729599338926,5.9151,169.06,169.01,10.79623876]
[1729599339746,23.776884,169.07,169.01,10.79623876]
[1729599339945,29.691884,169.07,169.01,10.79623876]
[1729599340629,6.2101,169.08,169.03,10.79623876]
[1729599340850,12.1244,169.08,169.03,10.79623876]
[1729599341349,6.2101,169.08,169.03,10.79623876]
[1729599341531,16.2458,169.09,169.05,10.79623876]
[1729599342354,5.9133,169.11,169.05,10.79623876]
[1729599342549,16.6296,169.13,169.07,10.79623876]
[1729599344054,16.6296,169.13,169.09,10.79623876]
[1729599344253,6.2664,169.15,169.09,10.79623876]
[1729599344569,5.9115,169.16,169.11,10.79623876]
[1729599345150,16.6296,169.17,169.11,10.79623876]
[1729599345339,12.7997373,169.19,169.11,10.79623876]
[1729599345543,5.9111,169.18,169.11,10.79623876]
[1729599346141,6.8890373,169.19,169.13,10.79623876]
[1729599346546,5.9115,169.16,169.04,23.776884]
[1729599346854,5.9108,169.18,169.09,10.79623876]
[1729599347032,5.9116,169.16,169.09,10.79623876]
[1729599347735,5.9116,169.16,169.03,15.9235]
[1729599347936,23.776884,169.18,169.1,10.79623876]
[1729599348135,5.9115,169.17,169.1,10.79623876]
[1729599348743,5.9115,169.17,169.03,15.9235]
[1729599348744,23.776884,169.18,169.12,10.79623876]
[1729599349058,6.8890373,169.19,169.12,10.79623876]
[1729599349240,12.7998373,169.19,169.12,10.79623876]
[1729599349557,0.6226373,169.19,169.18,10.79623876]
[1729599349742,0.6226373,169.19,169.13,15.0081]
[1729599350060,0.6226373,169.19,169.18,10.79623876]
[1729599352338,6.5331373,169.19,169.09,32.30651286]
[1729599353148,0.6226373,169.19,169.09,32.30651286]
[1729599353859,5.9114,169.17,169.09,16.78551286]
[1729599354034,23.776884,169.18,169.09,16.78551286]
[1729599354235,29.687684,169.18,169.09,16.78551286]
[1729599354564,5.9112,169.17,169.09,16.78551286]
[1729599354859,29.687984,169.18,169.09,16.78551286]
[1729599355247,5.9112,169.17,169.09,16.78551286]
[1729599355645,23.776884,169.18,169.09,16.78551286]
[1729599355851,5.9112,169.17,169.09,16.78551286]
[1729599356557,23.776884,169.18,169.09,16.78551286]
[1729599356752,29.687784,169.18,169.09,16.78551286]
[1729599357058,23.776884,169.18,169.09,16.78551286]
[1729599357261,5.9113,169.17,169.09,16.78551286]
[1729599357459,23.776884,169.18,169.09,16.78551286]
[1729599357762,5.9112,169.17,169.09,16.78551286]
[1729599357960,23.776884,169.18,169.06,16.78551286]
[1729599358256,5.9122,169.15,169.06,16.78551286]
[1729599359457,23.776884,169.15,169.06,16.78551286]
[1729599359662,23.776884,169.18,169.06,16.78551286]
[1729599359839,23.776884,169.16,169.06,16.78551286]
[1729599360042,23.776884,169.18,169.09,16.78551286]
[1729599360345,29.687884,169.18,169.09,16.78551286]
[1729599360557,23.776884,169.18,169.09,16.78551286]
[1729599360957,0.6226373,169.19,169.1,20.0]
[1729599361159,0.6226373,169.19,169.12,16.78551286]
[1729599363965,0.6226373,169.19,169.1,36.78551286]
[1729599365350,23.776884,169.18,169.1,16.78551286]
[1729599366044,0.6226373,169.19,169.11,20.0]
[1729599366245,0.6226373,169.19,169.13,16.78551286]
[1729599367767,5.9111,169.18,169.05,15.1343]
[1729599367939,5.9111,169.18,169.09,16.78551286]
[1729599368140,0.6226373,169.19,169.09,16.78551286]
[1729599368365,23.776884,169.18,169.09,16.78551286]
[1729599368553,0.6226373,169.19,169.09,16.78551286]
[1729599368767,0.6226373,169.19,169.11,16.78551286]
[1729599370690,0.6226373,169.19,169.12,16.78551286]
[1729599371142,0.6226373,169.19,169.1,16.78551286]
[1729599371855,0.6226373,169.19,169.11,20.0]
[1729599372457,0.6226373,169.19,169.12,20.0]
[1729599373668,0.6226373,169.19,169.11,16.78551286]
[1729599381989,0.6226373,169.19,169.06,23.776884]
[1729599381990,0.6226373,169.19,169.14,16.78551286]
[1729599382389,0.6226373,169.19,169.17,16.78551286]
[1729599386472,21.7893,169.29,169.17,16.78551286]
[1729599386681,21.7893,169.29,169.12,32.58101286]
[1729599386682,21.7893,169.29,169.21,16.78551286]
[1729599388095,21.7893,169.29,169.19,15.2939]
[1729599388398,21.7893,169.29,169.22,16.78551286]
[1729599391803,31.7249,169.33,169.25,16.78551286]
[1729599394901,10.0,169.33,169.26,15.2888]
[1729599395393,10.0,169.33,169.27,16.78551286]
[1729599396196,10.0,169.33,169.29,16.78551286]
[1729599398096,10.0,169.33,169.25,16.78551286]
[1729599398779,10.0,169.33,169.27,16.78551286]
[1729599403204,25.2356,169.33,169.25,16.78551286]
[1729599403422,31.1413,169.33,169.25,16.78551286]
[1729599403588,5.907,169.3,169.19,15.2888]
[1729599403909,29.835484,169.32,169.19,16.78551286]
[1729599404106,29.835484,169.32,169.21,16.78551286]
[1729599404314,23.776884,169.29,169.21,16.78551286]
[1729599404483,29.835484,169.32,169.21,16.78551286]
[1729599404691,5.9076,169.28,169.21,16.78551286]
[1729599405214,5.9071,169.29,169.21,16.78551286]
[1729599406011,23.776884,169.29,169.21,16.78551286]
[1729599406382,29.683984,169.29,169.21,16.78551286]
[1729599406811,23.776884,169.31,169.21,16.78551286]
[1729599407584,6.0586,169.32,169.23,16.78551286]
[1729599408897,6.0586,169.32,169.25,16.78551286]
[1729599409411,25.2356,169.33,169.25,16.78551286]
[1729599410209,10.0,169.33,169.27,16.78551286]
[1729599414115,10.0,169.33,169.2,16.5026]
[1729599414413,6.3338,169.32,169.23,16.78551286]
[1729599420325,23.776884,169.31,169.23,16.78551286]
[1729599420513,23.776884,169.29,169.23,16.78551286]
[1729599420713,5.9074,169.28,169.19,16.78551286]
[1729599420932,29.683884,169.29,169.19,16.78551286]
[1729599421832,29.683884,169.29,169.21,16.78551286]
[1729599422736,15.771,169.3,169.21,16.78551286]
[1729599423541,15.771,169.3,169.23,16.78551286]
[1729599425032,29.684084,169.29,169.18,6.07555645]
[1729599425332,5.9073,169.28,169.2,16.78551286]
[1729599425830,29.683984,169.29,169.2,16.78551286]
[1729599426212,23.776884,169.29,169.2,16.78551286]
[1729599426915,15.771,169.3,169.22,16.78551286]
[1729599427221,29.684884,169.27,169.18,16.78551286]
[1729599427417,23.776884,169.25,169.16,16.78551286]
[1729599427618,23.776884,169.23,169.16,16.78551286]
[1729599427818,15.95021608,169.24,169.16,16.78551286]
[1729599428026,0.49281608,169.22,169.14,1.02679091]
[1729599428326,0.49281608,169.22,169.16,16.78551286]
[1729599428513,23.776884,169.2,169.12,16.78551286]
[1729599428712,23.776884,169.18,169.05,22.9436]
[1729599428928,5.912,169.15,169.08,17.81345523]
[1729599429235,23.776884,169.18,169.08,16.78551286]
[1729599429535,16.3265,169.16,169.08,17.81299356]
[1729599430121,0.49281608,169.15,169.08,17.81299356]